Cogmind - Beta 13 @@@ ROGUE MODE // 2024.04.03 @ 13:48:02 Player: Yvonne Result: Destroyed by G-34 Mercenary with Small Laser Performance ------------- Evolutions (1) 500 Regions Visited (2) 400 Robots Destroyed (17) 85 Value Destroyed (356) 356 Prototype IDs (0) 0 Alien Tech Used (0) 0 Bonus (0) 0 TOTAL SCORE: 1341 Bonus ------- None Cogmind --------- Core Integrity 0/400 Matter 300/300 Energy 100/100 System Corruption 2% Temperature Cool (6) Movement Core (200) Ox3 Location -9/Materials Parts ------- > --- POWER (1) -------- (None) > --- PROPULSION (2) --- (None) > --- UTILITY (4) ------ Medium Storage Unit Structural Scanner Propulsion Shielding > --- WEAPON (2) ------- (None) > --- INVENTORY (10) --- Ion Engine Ion Engine Light Treads Wheel Sensor Array Core Shielding Field Recycling Unit (2) Light Assault Rifle Datajack Peak State ------------ > --- POWER ------------ Light Nuclear Core > --- PROPULSION ------- Light Treads Light Treads > --- UTILITY ---------- Medium Storage Unit Structural Scanner Propulsion Shielding Field Recycling Unit > --- WEAPON ----------- Light Assault Rifle Light Assault Rifle > --- INVENTORY -------- Ion Engine Ion Engine Light Treads Wheel Sensor Array Seismic Detector Core Shielding EM Pulse Gun Datajack Mining Laser [Rating: 13] Favorites ----------- Power Light Ion Engine Engine Light Ion Engine Power Core Light Nuclear Core Propulsion Light Treads Treads Light Treads Wheel Wheel Utility Propulsion Shielding Device Seismic Detector Storage Medium Storage Unit Protection Propulsion Shielding Weapon Light Assault Rifle Energy Gun Small Laser Ballistic Gun Light Assault Rifle Special Weapon Mining Laser Build | -11 -10 -9 ------- Run | Yrd Mat Mat Slots Evolved 2 | . . 2 Power . | . . . Propulsion . | . . . Utility 2 | . . 2 Weapon . | . . . Parts Attached 24 | 9 8 7 Power 5 | 2 3 . Engine 4 | 2 2 . Core 1 | . 1 . Reactor . | . . . Propulsion 4 | 3 1 . Treads 3 | 2 1 . Leg . | . . . Wheel 1 | 1 . . Hover . | . . . Flight . | . . . Utility 9 | 2 2 5 Device 5 | 1 . 4 Storage 2 | 1 1 . Processor . | . . . Hackware . | . . . Protection 2 | . 1 1 Artifact . | . . . Weapon 6 | 2 2 2 Energy Gun 2 | 1 . 1 Energy Cannon . | . . . Ballistic Gun 3 | 1 2 . Ballistic Cannon . | . . . Launcher . | . . . Special Weapon 1 | . . 1 Impact Weapon . | . . . Slashing Weapon . | . . . Piercing Weapon . | . . . Special Melee Weapon . | . . . Unidentified Prototypes . | . . . Parts Lost 8 | . 1 7 Power 1 | . . 1 Propulsion 2 | . . 2 Utility 2 | . 1 1 Weapon 3 | . . 3 Highest Loss Streak 7 | . 1 7 To Critical Strikes . | . . . Average Slot Usage (%) 97 | . 99 93 Engine 7 | . 10 . Core 5 | . 3 10 Treads 25 | . 27 19 Device 5 | . 2 14 Storage 13 | . 14 11 Protection 13 | . 11 17 Energy Gun 7 | . 10 . Ballistic Gun 18 | . 17 19 Naked Turns . | . . . Heaviest Build 27 | 14 19 27 Greatest Support 40 | 40 40 40 Greatest Overweight (x) 4 | . . 4 Average Overweight (x) . | . . . Largest Inventory Capacity 10 | 8 10 10 Average Capacity 9 | 7 9 10 Most Carried 10 | 8 10 10 Average Carried 8 | 5 9 8 Final Capacity 10 | 8 10 10 Final Carried 10 | 8 10 9 Class Distribution -------------------- 100% | Mutant Dominant Class ---------------- Mutant | -10/Materials Mutant | -9/Materials Resources | -11 -10 -9 ----------- Run | Yrd Mat Mat Matter Collected 535 | 261 216 58 Remotely . | . . . Salvage Created 436 | 78 276 82 Parts 37 | 6 24 7 Haulers Intercepted . | . . . Recyclers Shooed 1 | . 1 . Parts Field Recycled 2 | . . 2 Retrieved Matter 2 | . . 2 Parts Self-Destructed . | . . . Prevented . | . . . Kills | -11 -10 -9 ------- Run | Yrd Mat Mat Combat Hostiles Destroyed 13 | . 11 2 Melee 1 | . 1 . Guns 12 | . 10 2 Classes Destroyed 6 | 2 2 2 Tunneler 1 | 1 . . Recycler 1 | 1 . . Operator 1 | . . 1 Watcher 1 | . . 1 Swarmer 6 | . 6 . Grunt 7 | . 5 2 Best Kill Streak 3 | 2 3 2 Combat Bots Only 3 | . 3 2 Max Kills in Single Turn 1 | 1 1 1 Gunslinging . | . . . Exploded . | . . . Melee 1 | . 1 . Uniques/NPCs Destroyed . | . . . Combat | -11 -10 -9 -------- Run | Yrd Mat Mat Hostile Shots Fired 222 | . 72 150 Missed 65 | . 20 45 Damage Taken 1525 | . 544 981 Core 482 | . 77 405 Absorbed by Shields . | . . . Redirected to Shielding 93 | . 35 58 Regen/Repaired (Parts) 56 | . 56 . Core Remaining (%) 84 | 100 69 . Volleys Fired 64 | 5 35 24 Largest 2 | 2 2 2 Hottest 100 | 60 60 100 Shots Fired 122 | 10 67 45 Gun 120 | 10 67 43 Cannon . | . . . Launcher . | . . . Special 2 | . . 2 Kinetic 81 | 5 36 40 Thermal 38 | 5 31 2 Explosive . | . . . Electromagnetic 3 | . . 3 Robot Hit Streak 6 | 5 5 6 Robot Miss Streak 5 | 1 5 4 Penetration Max . | . . . Secondary Targets 3 | . 2 1 Max Gunslinging Chain 1 | . 1 1 Shots Hit Robots 62 | 6 33 23 Core Hits 30 | 3 18 9 Critical Kills . | . . . Critical Parts Destroyed . | . . . Critical Strikes . | . . . Melee Attacks . | . . . Impact . | . . . Slashing . | . . . Piercing . | . . . Sneak Attacks . | . . . Combat Hostiles . | . . . Follow-up Attacks . | . . . Damage Inflicted 720 | 72 419 229 Guns 688 | 72 402 214 Cannons . | . . . Explosions . | . . . Melee . | . . . Ramming 32 | . 17 15 Kinetic 434 | 38 223 173 Thermal 213 | 34 179 . Explosive . | . . . Electromagnetic 41 | . . 41 Impact . | . . . Slashing . | . . . Piercing . | . . . Highest Corruption 2 | . . 2 Average Corruption 2 | . . 2 Corruption Purged . | . . . Corruption Blocked . | . . . Effects 1 | . . 1 Message Errors 1 | . . 1 Overload Shots . | . . . Overflow Damage . | . . . Projectiles . | . . . Explosions . | . . . Melee . | . . . Knockbacks . | . . . Impact . | . . . Kinetic . | . . . Secondary . | . . . Self-Inflicted Damage 3 | . . 3 Shots . | . . . Rammed 15 | . 6 9 Targets Rammed 18 | . 7 11 Kicked . | . . . Crushed 3 | . 1 2 Highest Temperature 144 | . 144 81 Average Temperature 48 | . 61 28 Received Heat Transfer 498 | . 228 270 Siege Activations . | . . . Robots Corrupted . | . . . Combat Hostiles . | . . . Parts Fried . | . . . Impact Corruptions . | . . . Robots Melted . | . . . Combat Hostiles . | . . . Parts Melted 1 | . 1 . Heat Transferred 475 | 75 400 . Parts Sabotaged . | . . . Parts Stolen . | . . . Parts Stripped . | . . . Power Chain Reactions . | . . . Alert | -11 -10 -9 ------- Run | Yrd Mat Mat Peak Influence 150 | 10 150 122 Initial 25 | . 6 25 Average 55 | 4 55 79 Maximum Alert Level . | . . . Low Security (%) 100 | 100 100 100 Level 1 . | . . . Level 2 . | . . . Level 3 . | . . . Level 4 . | . . . Level 5 . | . . . High Security . | . . . Max Security . | . . . Squads Dispatched 2 | . 2 . Investigation 1 | . 1 . Extermination . | . . . Reinforcement 1 | . 1 . Assault . | . . . Garrison . | . . . Intercept . | . . . Searches Triggered . | . . . Construction Impeded . | . . . Haulers Reinforced . | . . . Active Scanning Responses . | . . . Cargo Convoy Interrupts . | . . . Stealth | -11 -10 -9 --------- Run | Yrd Mat Mat Distress Signals 3 | . 3 . Communications Jammed . | . . . Distress Signals . | . . . Times Spotted 35 | . 22 13 Peak Tracking Total 7 | . 5 7 Tactical Retreats 1 | . . 1 Traps | -11 -10 -9 ------- Run | Yrd Mat Mat Traps Triggered 1 | . 1 . Indirectly . | . . . Trap Hack Attempts . | . . . Triggered . | . . . Disarmed . | . . . Reprogrammed . | . . . Reused . | . . . Traps Extracted . | . . . Installed . | . . . Triggered . | . . . Machines | -11 -10 -9 ---------- Run | Yrd Mat Mat Machines Disabled . | . . . Max in Single Turn . | . . . Machines Repaired . | . . . Machines Dismantled . | . . . Machines Sabotaged . | . . . Overloaded Fab Kills . | . . . Hacking | -11 -10 -9 --------- Run | Yrd Mat Mat Machines Accessed 5 | . 5 . Terminals 3 | . 3 . Fabricators . | . . . Repair Stations 1 | . 1 . Recycling Units 1 | . 1 . Scanalyzers . | . . . Garrison Access . | . . . Total Hacks 10 | . 10 . Successful 6 | . 6 . Failed 4 | . 4 . Catastrophic 1 | . 1 . Database Lockouts . | . . . Manual . | . . . Terminals 5 | . 5 . Fabricators . | . . . Repair Stations 2 | . 2 . Recycling Units 3 | . 3 . Scanalyzers . | . . . Garrison Access . | . . . Terminal Hacks 2 | . 2 . Alert Level 1 | . 1 . Zone Layout 1 | . 1 . Fabricator Hacks . | . . . Repair Station Hacks 2 | . 2 . Scan Component 1 | . 1 . Repair 1 | . 1 . Recycling Unit Hacks 2 | . 2 . Report Inventory 1 | . 1 . Retrieve Components 1 | . 1 . Scanalyzer . | . . . Garrison Access Hacks . | . . . Unauthorized Hacks . | . . . Terminals . | . . . Fabricators . | . . . Repair Stations . | . . . Recycling Units . | . . . Scanalyzers . | . . . Garrison Access . | . . . Data Cores Recovered 1 | . . 1 Used . | . . . Hacking Detections 4 | . 4 . Full Trace Events . | . . . Feedback Events . | . . . Feedback Blocked . | . . . Robot Schematics Acquired . | . . . Robots Built . | . . . Authchips . | . . . Time . | . . . Total Robot Build Rating . | . . . Part Schematics Acquired . | . . . Parts Built . | . . . Authchips . | . . . Time . | . . . Total Part Build Rating . | . . . Parts Repaired 1 | . 1 . Time 26 | . 26 . Parts Recycled . | . . . Recycled Matter . | . . . Retrieved Matter . | . . . Retrieved Components 8 | . 8 . Parts Scanalyzed . | . . . Part Schematics Acquired . | . . . Parts Damaged . | . . . Bothacking | -11 -10 -9 ------------ Run | Yrd Mat Mat Used RIF Installer . | . . . Robots Hacked . | . . . Non-combat . | . . . Combat . | . . . Robot Hacks Applied . | . . . Relay Couplers Released . | . . . Fabnet Peak Effective % . | . . . Robots Rewired . | . . . Allies Hacked . | . . . Hacks Repelled . | . . . Allies | -11 -10 -9 -------- Run | Yrd Mat Mat Total Allies . | . . . Largest Group . | . . . Highest-Rated Group . | . . . Highest-Rated Ally . | . . . Total Orders . | . . . Ally Attacks . | . . . Total Damage . | . . . Kills . | . . . Allies Corrupted . | . . . Allies Melted . | . . . Intel | -11 -10 -9 ------- Run | Yrd Mat Mat Robot Analysis Total . | . . . Derelict Logs Recovered . | . . . Drone Launches . | . . . Drone Recoveries . | . . . Exploration | -11 -10 -9 ------------- Run | Yrd Mat Mat Turns Passed 1619 | 173 1059 387 Spaces Moved 773 | 76 522 175 Core 16 | 12 . 4 Treads 757 | 64 522 171 Legs . | . . . Wheels . | . . . Hover . | . . . Flight . | . . . Fastest Speed 50 | 50 160 160 Average Speed 158 | 142 160 161 Slowest Speed 250 | 160 160 250 Overloaded Moves . | . . . Propulsion Burnouts . | . . . Robots Hopped . | . . . Cave-ins Triggered . | . . . Exploration Rate (%) 33 | 5 78 18 Regions Visited 2 Branch Regions . Pre-discovered Areas . | . . . Known Exits Taken . | . . . Unknown Exits Taken 2 | 1 1 . Scrap Searched . | . . . Spaces Dug 2 | . . 2 Terrain Destroyed 2 | . . 2 Melee . | . . . Projectile 2 | . . 2 AOE . | . . . Terrain Rammed . | . . . Walls Destroyed . | . . . Machines Disabled . | . . . Actions | -11 -10 -9 --------- Run | Yrd Mat Mat Total 1037 | 131 678 228 Wait 108 | 24 79 5 Move 772 | 75 522 175 Hop . | . . . Pick Up 36 | 16 16 4 Fast Attach . | . . . Attach 13 | 8 2 3 Detach 1 | 1 . . Swap 11 | 1 6 4 Drop 15 | 1 12 2 Fire 64 | 5 35 24 Melee . | . . . Ram 8 | . . 8 Kick . | . . . Crush 9 | . 6 3 Escape Stasis . | . . . Rewire . | . . . Trap . | . . . Miscellaneous . | . . . Route ------- -11/Scrapyard -10/Materials (discovered 4 exits: *Mat x2 / [*Min x2]) -9/Materials (discovered 1 exit: [*Min]) History --------- Turn | Location | Event 8 | -11/Scrapyard | Discovered new exit (range 15) 174 | -11/Scrapyard | Entered Materials 308 | -10/Materials | Build established: Mutant 444 | -10/Materials | Repaired Lgt. Treads 604 | -10/Materials | Discovered new exit (range 4) 630 | -10/Materials | Discovered new exit (range 16) 1022 | -10/Materials | Discovered new exit (range 7) 1195 | -10/Materials | Discovered new exit (range 8) 1233 | -10/Materials | Entered another Materials area 1233 | -9/Materials | Evolved 2 slots: Utility x2 1569 | -9/Materials | Discovered new exit (range 16) 1593 | -9/Materials | Core integrity fell below 50% 1615 | -9/Materials | Core integrity fell below 20% 1620 | -9/Materials | Destroyed by G-34 Mercenary with Small Laser Last Messages --------------- 01576_ K-01 Serf destroyed. 01581_ Lgt. Treads destroyed. 01584_ EM Pulse Gun destroyed. 01584_ Seismic Detector destroyed. 01586_ K-01 Serf collects debris. 01586_ Lgt. Assault Rifle destroyed. 01587_ K-01 Serf destroyed. 01591_ Lgt. Nuclear Core destroyed. 01595_ Mining Laser destroyed. 01599_ U-05 Engineer builds a Wall. 01602_ Slammed into S-10 Pest. 01602_ Destabilizing: System interference. 01602_ Structural Scanner temporarily disabled. 01602_ S-10 Pest destroyed. 01604_ Slammed into S-10 Pest. 01610_ Destabilizing: System corrupted (+2). 01612_ Slammed into S-10 Pest. 01618_ S-10 Pest destroyed. 01619_ I:9ZOMQ9SRM0O=C,R